{"text_format":"1","workbook":"xlsx","n_sheets":2,"sheets":["مخبر","سلف "],"not_rendered":{"charts":0,"images":0,"macros":1,"external_links":0,"defined_names":12,"comments":0,"pivot_tables":1},"unopened":[],"bounds":{"document_bytes":16777216,"sheet_cells":100000,"rows_first":2000,"rows_last":500,"rows_between":2000,"halvings":0,"cell_chars":16384,"cell_head_chars":4096},"cells_cut":0,"cells_raw":0,"read":"whole","date_system":"1900"}

{"sheet":"مخبر","index":0,"n_rows":115,"n_cols":25,"rows_kept":115,"cut":false,"hidden":false,"merged":[]}
["المقبوض","المدفوع","التاريخ","اسم المريض","اسعاف","قبول","رقم المريض","تحليل 1","تحليل 2","تحليل 3","تحليل 4","تحليل 5","رقم الفاتورة",null,"مخبر",null,null,null,null,null,null,null,null,null,"GL"]
[3500,null,"2018-04-13","امتثال سيرجية",null,"نعم",1,null,null,null,null,null,4858,null,"CBC"]
[1500,null,"2018-04-13","جنى جعفر",null,"نعم",6,null,null,null,null,null,4857,null,"urea"]
[1250,null,"2018-04-13","اسراء جبل","نعم",null,null,null,null,null,null,null,4856,null,"na+ , k+"]
[1100,null,"2018-04-12","جولي الباب","نعم",null,null,null,null,null,null,null,4852,null,"glucose"]
[3250,null,"2018-04-12","نجاح قوصرة","نعم",null,null,null,null,null,null,null,4853,null,"urine"]
[500,null,"2018-04-13","جنى جعفر",null,"نعم",6,null,null,null,null,null,4859,null,"CRP"]
[750,null,"2018-04-14","جنى جعفر",null,"نعم",6,null,null,null,null,null,4860,null,"SGPT"]
[3150,null,"2018-04-14","امينة قصير","نعم",null,null,null,null,null,null,null,4861]
[2600,null,"2018-04-14","خدوج يعقوب",null,"نعم",8,null,null,null,null,null,4862]
[3600,null,"2018-04-15","عبد الكريم عيسى",null,"نعم",5,null,null,null,null,null,4863]
[500,null,"2018-04-15","حسناء ديري","خارجي",null,null,null,null,null,null,null,4864]
[1800,null,"2018-04-15","شام خياط","خارجي",null,null,null,null,null,null,null,4865]
[500,null,"2018-04-16","محمد حقبور","خارجي",null,null,null,null,null,null,null,4866]
[8200,null,"2018-04-16","فاطمة اليسفو",null,"نعم",11,null,null,null,null,null,4867]
[3300,null,"2018-04-16","خدوج يعقوب",null,"نعم",8,null,null,null,null,null,4868]
[500,null,"2018-04-17","الاء بنان",null,"نعم",14,null,null,null,null,null,4869]
[3200,null,"2018-04-17","نبيهة المرعي",null,"نعم",22,null,null,null,null,null,4870]
[1000,null,"2018-04-17","يزن كرمان",null,"نعم",21,null,null,null,null,null,4877]
[1000,null,"2018-04-18","عدنان فتال",null,"نعم",10,null,null,null,null,null,"4880+4882"]
[12800,null,"2018-04-18","عبد الهادي قصير الذيل",null,"نعم",13,null,null,null,null,null,"4875+4876+4883"]
[14750,null,"2018-04-18","عبد الباري ديب",null,"نعم",9,null,null,null,null,null,"4871+4873+4784+4888"]
[7500,null,"2018-04-18","رباح بازرباشي ",null,"نعم",25,null,null,null,null,null,"4872+4885"]
[7500,null,"2018-04-18","عبد الهادي قصير الذيل",null,"نعم",13,null,null,null,null,null,4884]
[300,null,"2018-04-18","زهية جراب","خارجي",null,null,"glucose",null,null,null,null,4886]
[3500,null,"2018-04-18","نبيهة المرعي",null,"نعم",22,null,null,null,null,null,4890]
[500,null,"2018-04-19","ايمان سقار",null,"نعم",16,null,null,null,null,null,4893]
[1000,null,"2018-04-19","غالية قباني ",null,"نعم",32,null,null,null,null,null,4892]
[9000,null,"2018-04-19","غالية قباني ",null,"نعم",33,null,null,null,null,null,4454]
[4500,null,"2018-04-19","عائشة قاظان","خارجي",null,null,null,null,null,null,null,4457]
[3000,null,"2018-04-19","اميرة قصر","خارجي",null,null,null,null,null,null,null,4458]
[1000,null,"2018-04-19","رباح بازرباشي ",null,"نعم",25,null,null,null,null,null,4898]
[4500,null,"2018-04-19","غالية قباني ",null,"نعم",32,null,null,null,null,null,4453]
[1500,null,"2018-04-19","منى الشامي",null,"نعم",31,null,null,null,null,null,"4896+4897"]
[6000,null,"2018-04-19","عدنان فتال",null,"نعم",10,null,null,null,null,null,"4887+4451+4452"]
[3500,null,"2018-04-19","اميرة حلاق","خارجي",null,null,null,null,null,null,null,4899]
[1100,null,"2018-04-19","احمد خطيب",null,"نعم",19,null,null,null,null,null,4895]
[2000,null,"2018-04-19","لطيفة حداد",null,"نعم",20,null,null,null,null,null,4881]
[null,72000,"2018-04-19","مواد مخبرية"]
[3500,null,"2018-04-20","غالية قباني ",null,"نعم",32,null,null,null,null,null,4459]
[1300,null,"2018-04-20","نبيهة المرعي",null,"نعم",22,null,null,null,null,null,4464]
[1100,null,"2018-04-20","اميرة حلاق",null,"نعم",30,null,null,null,null,null,4465]
[800,800,"2018-04-20","غالية قباني ",null,"نعم",32,null,null,null,null,null," شطب مرتجع4466"]
[11500,null,"2018-04-20","محمود نور",null,"نعم",27,null,null,null,null,null,"4900+4878+4889"]
[2000,null,"2018-04-20","محمود  الموح",null,"نعم",33,null,null,null,null,null,4894]
[3500,null,"2018-04-21","اميرة حلاق ",null,"نعم",30,null,null,null,null,null,4461]
[6900,null,"2018-04-21","عدنان فتال",null,"نعم",10,null,null,null,null,null,4462]
[3300,null,"2018-04-21","محمد عنان غشيم",null,"نعم",41,null,null,null,null,null,4470]
[1800,null,"2018-04-21","اميرة حلاق ",null,"نعم",30,null,null,null,null,null,4472]
[1600,null,"2018-04-21","رقية طرقجي","نعم",null,null,null,null,null,null,null,4471]
[6000,null,"2018-04-21","محمد طبق","نعم",null,null,null,null,null,null,null,4473]
[500,null,"2018-04-21","مريم طاهر","نعم",null,null,null,null,null,null,null,4474]
[2500,null,"2018-04-21","عمر مريمي",null,"نعم",42,null,null,null,null,null,4476]
[1500,null,"2018-04-21","راما حج إبراهيم","نعم",null,null,null,null,null,null,null,4479]
[2500,null,"2018-04-21","محمد طبق",null,"نعم",43,null,null,null,null,null,4478]
[600,null,"2018-04-21","فاطمة كنجو","نعم",null,null,null,null,null,null,null,4477]
[5000,null,"2018-04-21","محمد محمود","نعم",null,45,null,null,null,null,null,4475]
[3000,null,"2018-04-22","احمد زعتر","نعم",null,null,null,null,null,null,null,4480]
[1500,null,"2018-04-21","بتول أبو بكر",null,"نعم",39,null,null,null,null,null,4467]
[null,3900,"2018-04-22","مواد مخبرية"]
[2000,null,"2018-04-22","محمد طبق",null,"نعم",43,null,null,null,null,null,4481]
[3000,null,"2018-04-22","محمد طبق",null,"نعم",44,null,null,null,null,null,4484]
[5000,null,"2018-04-22","فاطمة قوجة",null,"نعم",49,null,null,null,null,null,4485]
[2500,null,"2018-04-23","رشيدة طبق","نعم",null,null,null,null,null,null,null,4487]
[1000,null,"2018-04-23","نغم بيلوني","نعم",null,null,null,null,null,null,null,4488]
[5200,null,"2018-04-23","سهام مصلح","نعم",null,null,null,null,null,null,null,4492]
[2500,null,"2018-04-23","محمد محمود",null,"نعم",45,null,null,null,null,null,4491]
[500,null,"2018-04-23","فاطمة قوجة",null,"نعم",49,null,null,null,null,null,4492]
[1100,null,"2018-04-23","عبد المجيد بادنجكي",null,"نعم",53,null,null,null,null,null,4489]
[3000,null,"2018-04-23","احمد اقرع","نعم",null,null,null,null,null,null,null,4495]
[2500,null,"2018-04-24","حسناء طبق","نعم",null,null,null,null,null,null,null,4497]
[2500,null,"2018-04-24","محمد طبق",null,"نعم",44,null,null,null,null,null,"بلا"]
[2000,null,"2018-04-24","غالية زرقا",null,"نعم",63,null,null,null,null,null,4499]
[1500,null,"2018-04-24","محمد بشير نصار","نعم",null,null,null,null,null,null,null,4901]
[3000,null,"2018-04-24","امينة قصير","نعم",null,null,null,null,null,null,null,4496]
[1800,null,"2018-04-24","محمد قبرصي",null,"نعم",68,null,null,null,null,null,4902]
[5000,null,"2018-04-24","نهى قباني",null,"نعم",66,null,null,null,null,null,4903]
[2000,null,"2018-04-24","محمد قبرصي",null,"نعم",68,null,null,null,null,null,4906]
[4000,null,"2018-04-24","محمد شحادة",null,"نعم",50]
[4000,null,"2018-04-25","عبد الغني سمور",null,"نعم",67,null,null,null,null,null,4909]
[7000,null,"2018-04-25","غصون منور","نعم",null,null,null,null,null,null,null,4910]
[1000,null,"2018-04-25","احمد خطيب","نعم",null,null,null,null,null,null,null,4911]
[500,null,"2018-04-25","عبد الرزاق البدوي","نعم",null,null,null,null,null,null,null,4912]
[800,null,"2018-04-25","سائدة ترمانيني","نعم",null,null,null,null,null,null,null,4914]
[12000,null,"2018-04-25","عبد العزيز المحيميد",null,null,null,null,null,null,null,null,4915]
[4000,null,"2018-04-25","اية العمر",null,"نعم",72]
[3600,null,"2018-04-25","هناء العمر","نعم",null,null,null,null,null,null,null,4916]
[1000,null,"2018-04-25","ايمان سقار",null,"نعم",70]
[3500,null,"2018-04-26","رمضان كيفو",null,"نعم",75,null,null,null,null,null,4920]
[3500,null,"2018-04-26","محمد طبق",null,"نعم",43,null,null,null,null,null,4919]
[800,null,"2018-04-26","نهى قباني",null,"نعم",66,null,null,null,null,null,4918]
[2500,null,"1900-01-27","امينة قصير",null,"نعم",null,null,null,null,null,null,4922]
[2500,null,"2018-04-28","كريم حاج اسعد","خارجي","لا",null,"مخبر",null,4933,null,null,4933]
[2000,null,"2018-04-28","محمد طبق",null,"نعم",43,null,null,null,null,null,4923]
[500,null,"2018-04-28","ايمان سقار",null,"نعم",70,null,null,null,null,null,4927]
[8000,null,"2018-04-28","كوثر الحسن",null,"نعم",80,null,null,null,null,null,4925]
[3000,null,"2018-04-28","زيد خشان",null,"نعم",79]
[10000,null,"2018-04-28","عبد الحليم خير الله",null,"نعم",76]
[4000,null,"2018-04-28","سميرة ياسين",null,"نعم",82]
[6700,null,"2018-04-28","محمد طبق",null,"نعم",43,null,null,null,null,null,"4928+4929"]
[5000,null,"2018-04-28","سهام مصلح","خارجي",null,null,null,null,null,null,null,4930]
[1000,null,"2018-04-28","بابللي","خارجي",null,null,null,null,null,null,null,4931]
[1000,null,"2018-04-28","كوثر الحسن",null,"نعم",80,null,null,null,null,null,4935]
[1000,null,"2018-04-28","محمد طبق",null,"نعم",43,null,null,null,null,null,4934]
[17000,null,"2018-04-28","فردوسي الخطيب","خارجي","لا",null,"مخبر",null,null,null,null,4937]
[3500,null,"2018-04-28","زهية جراب",null,"نعم",77,null,null,null,null,null,4921]
[2000,null,"2018-04-28","محمد هيثم الصغير",null,"نعم",90,null,null,null,null,null,4941]
[6000,null,"2018-04-29","فاطمة فرواتي",null,"نعم",89,null,null,null,null,null,4940]
[9000,null,"2018-04-29","ضغينة العلي",null,"نعم",85,null,null,null,null,null,4941]
[1000,null,"2018-04-29","وفاء سنكري",null,"نعم",88,null,null,null,null,null,4938]
[]
[]
[]
[{"$f":"SUBTOTAL(109,الجدول156[المقبوض])","v":363050},{"$f":"SUBTOTAL(109,الجدول156[المدفوع])","v":76700},"الرصيد اليومي",{"$f":"الجدول156[[#Totals],[المقبوض]]-الجدول156[[#Totals],[المدفوع]]","v":286350},{"$f":"SUBTOTAL(103,الجدول156[اسعاف])","v":34},{"$f":"SUBTOTAL(103,الجدول156[قبول])","v":74},null,null,null,null,null,null,{"$f":"SUBTOTAL(103,الجدول156[رقم الفاتورة])","v":101}]
[null,null,null,"موجود"]

{"sheet":"سلف ","index":1,"n_rows":70,"n_cols":19,"rows_kept":70,"cut":false,"hidden":false,"merged":[]}
["المقبوض","المدفوع","التاريخ","اسم المريض","اسعاف","قبول","رقم المريض","رقم الغرفة","رقم الفاتورة","سلف الكادر",3,null,1,"سلام سكيف",null,"التاريخ","(الكل)"]
[25000,25000,"2018-04-15","عبد الباري ديب",null,"نعم",9,null,{"$f":"الجدول1581011[[#This Row],[المقبوض]]-الجدول1581011[[#This Row],[المدفوع]]","v":0},null,4,null,2,"ربا محبك",null,"المدفوع","(الكل)"]
[50000,50000,"2018-04-15","عدنان فتال",null,"نعم",10,"عناية مشددة",{"$f":"الجدول1581011[[#This Row],[المقبوض]]-الجدول1581011[[#This Row],[المدفوع]]","v":0},null,5,null,3,"رضية عبد الرحمن"]
[25000,25000,"2018-04-15","خدوج يعقوب",null,"نعم",7,7,{"$f":"الجدول1581011[[#This Row],[المقبوض]]-الجدول1581011[[#This Row],[المدفوع]]","v":0},null,6,null,4,"مريم جمو",null,"تسميات الصفوف","مجموع من المقبوض","مجموع من المدفوع"]
[25000,25000,"2018-04-15","لؤي عرب",null,"نعم",12,12,{"$f":"الجدول1581011[[#This Row],[المقبوض]]-الجدول1581011[[#This Row],[المدفوع]]","v":0},null,7,null,5,"إبراهيم دكدك",null,"احمد الخطيب",50000,50000]
[25000,25000,"2018-04-15","فاطمة اليسفو",null,"نعم",11,11,{"$f":"الجدول1581011[[#This Row],[المقبوض]]-الجدول1581011[[#This Row],[المدفوع]]","v":0},null,8,null,6,"احمد عبد الغفور",null,"الاء بنان",25000,25000]
[25000,25000,"2018-04-15","عبد الهادي قصير الذيل",null,"نعم",13,"عناية مشددة",{"$f":"الجدول1581011[[#This Row],[المقبوض]]-الجدول1581011[[#This Row],[المدفوع]]","v":0},null,9,null,7,"فضيلة طبق",null,"ايمان سقار",15000,15000]
[25000,25000,"2018-04-16","عبد الهادي قصير الذيل",null,"نعم",13,"عناية مشددة",{"$f":"الجدول1581011[[#This Row],[المقبوض]]-الجدول1581011[[#This Row],[المدفوع]]","v":0},null,10,null,8,"اسعد الطعمة",null,"خدوج يعقوب",25000,25000]
[15000,15000,"2018-04-16","ماسة ادلبي",null,"نعم",17,null,{"$f":"الجدول1581011[[#This Row],[المقبوض]]-الجدول1581011[[#This Row],[المدفوع]]","v":0},null,11,null,9,"ندى عكاش",null,"عبد الباري ديب",75000,75000]
[25000,25000,"2018-04-16","الاء بنان",null,"نعم",14,null,{"$f":"الجدول1581011[[#This Row],[المقبوض]]-الجدول1581011[[#This Row],[المدفوع]]","v":0},null,12,null,10,"هناء عليوي",null,"عبد الهادي قصير الذيل",50000,50000]
[25000,25000,"2018-04-16","عدنان فتال",null,"نعم",10,null,{"$f":"الجدول1581011[[#This Row],[المقبوض]]-الجدول1581011[[#This Row],[المدفوع]]","v":0},null,13,null,11,"كوثر درويش",null,"عدنان فتال",100000,100000]
[12000,12000,"2018-04-16","محمد كرم قضيماتي",null,"نعم",18,null,{"$f":"الجدول1581011[[#This Row],[المقبوض]]-الجدول1581011[[#This Row],[المدفوع]]","v":0},null,14,null,12,"علا صديق",null,"غالية قباني",25000,25000]
[50000,50000,"2018-04-16","عبد الباري ديب",null,"نعم",9,null,{"$f":"الجدول1581011[[#This Row],[المقبوض]]-الجدول1581011[[#This Row],[المدفوع]]","v":0},null,15,null,13,"نصيحة شاعر",null,"فاطمة اليسفو",25000,25000]
[25000,25000,"2018-04-17","عدنان فتال",null,"نعم",10,null,{"$f":"الجدول1581011[[#This Row],[المقبوض]]-الجدول1581011[[#This Row],[المدفوع]]","v":0},null,16,null,14,"رنيم شاغوري",null,"لطيفة حداد",15000,15000]
[10000,10000,"2018-04-17","يزن كرمان",null,"نعم",21,null,{"$f":"الجدول1581011[[#This Row],[المقبوض]]-الجدول1581011[[#This Row],[المدفوع]]","v":0},null,17,null,15,"ضحى دليل",null,"لؤي عرب",25000,25000]
[15000,15000,"2018-04-17","لطيفة حداد",null,"نعم",20,null,{"$f":"الجدول1581011[[#This Row],[المقبوض]]-الجدول1581011[[#This Row],[المدفوع]]","v":0},null,18,null,16,"زهية محيو",null,"ماسة ادلبي",15000,15000]
[20000,20000,"2018-04-17","نبيهة المرعي",null,"نعم",22,null,{"$f":"الجدول1581011[[#This Row],[المقبوض]]-الجدول1581011[[#This Row],[المدفوع]]","v":0},null,19,null,17,"ريم حمامي",null,"محمد كرم قضيماتي",12000,12000]
[15000,15000,"2018-04-17","ايمان سقار",null,"نعم",16,null,{"$f":"الجدول1581011[[#This Row],[المقبوض]]-الجدول1581011[[#This Row],[المدفوع]]","v":0},null,20,null,18,"فاطمة الحسن الحامد",null,"محمود نور",65000,65000]
[25000,25000,"2018-04-17","احمد الخطيب",null,"نعم",19,null,{"$f":"الجدول1581011[[#This Row],[المقبوض]]-الجدول1581011[[#This Row],[المدفوع]]","v":0},null,21,null,19,"عائشة الخالد",null,"نبيهة المرعي",45000,45000]
[25000,25000,"2018-04-17","محمود نور",null,"نعم",27,null,{"$f":"الجدول1581011[[#This Row],[المقبوض]]-الجدول1581011[[#This Row],[المدفوع]]","v":0},null,22,null,20,"عبد الرحمن بغدادي",null,"يزن كرمان",10000,10000]
[25000,25000,"2018-04-18","احمد الخطيب",null,"نعم",19,null,{"$f":"الجدول1581011[[#This Row],[المقبوض]]-الجدول1581011[[#This Row],[المدفوع]]","v":0},null,23,null,21,"حسين الحسين",null,"(فارغ)"]
[25000,25000,"2018-04-18","غالية قباني",null,"نعم",32,null,{"$f":"الجدول1581011[[#This Row],[المقبوض]]-الجدول1581011[[#This Row],[المدفوع]]","v":0},null,24,null,22,"محمود قياس",null,"رباح بازر باشا",15000,15000]
[40000,40000,"2018-04-19","محمود نور",null,"نعم",27,"عناية مشددة",{"$f":"الجدول1581011[[#This Row],[المقبوض]]-الجدول1581011[[#This Row],[المدفوع]]","v":0},null,"عناية أطفال",null,23,"سمية الذخري",null,"محمود الموح ",25000,25000]
[15000,15000,"2018-04-19","رباح بازر باشا",null,"نعم",24,null,{"$f":"الجدول1581011[[#This Row],[المقبوض]]-الجدول1581011[[#This Row],[المدفوع]]","v":0},null,"حواضن",null,24,"صباح سعدى",null,"محمد عدنان غشيم",50000,50000]
[25000,25000,"2018-04-19","محمود الموح ",null,"نعم",33,null,{"$f":"الجدول1581011[[#This Row],[المقبوض]]-الجدول1581011[[#This Row],[المدفوع]]","v":0},null,"عناية مشددة",null,25,"فطيم وهاب العمر",null,"يامن فرخ",20000,20000]
[25000,25000,"2018-04-20","نبيهة المرعي",null,"نعم",22,21,{"$f":"الجدول1581011[[#This Row],[المقبوض]]-الجدول1581011[[#This Row],[المدفوع]]","v":0},null,null,null,26,"مزينة عكام",null,"محمد شحرور",75000,75000]
[50000,50000,"2018-04-21","محمد عدنان غشيم",null,"نعم",41,null,{"$f":"الجدول1581011[[#This Row],[المقبوض]]-الجدول1581011[[#This Row],[المدفوع]]","v":0},null,null,null,27,"علياء خليل",null,"عبد الكريم الموسى",25000]
[20000,20000,"2018-04-21","يامن فرخ",null,"نعم",47,"عناية أطفال",{"$f":"الجدول1581011[[#This Row],[المقبوض]]-الجدول1581011[[#This Row],[المدفوع]]","v":0},null,null,null,28,"رشا النجار",null,"احمد الحميدي",10000,10000]
[25000,25000,"2018-04-22","محمد شحرور",null,"نعم",50,"عناية مشددة",{"$f":"الجدول1581011[[#This Row],[المقبوض]]-الجدول1581011[[#This Row],[المدفوع]]","v":0},null,null,null,29,"آيات حميد",null,"عبد الغني سمور",90000]
[25000,null,"2018-04-22","عبد الكريم الموسى",null,"نعم",48,"عناية مشددة",{"$f":"الجدول1581011[[#This Row],[المقبوض]]-الجدول1581011[[#This Row],[المدفوع]]","v":25000},null,null,null,30,"سراء دكدك",null,"ذكاء نقار",25000,25000]
[10000,10000,"2018-04-22","احمد الحميدي",null,"نعم",51,11,{"$f":"الجدول1581011[[#This Row],[المقبوض]]-الجدول1581011[[#This Row],[المدفوع]]","v":0},null,null,null,31,"سهى درويش",null," ايه العمر",25000,25000]
[50000,50000,"2018-04-23","محمد شحرور",null,"نعم",50,4,{"$f":"الجدول1581011[[#This Row],[المقبوض]]-الجدول1581011[[#This Row],[المدفوع]]","v":0},null,null,null,33,"نوال خلف",null,"مصطفى حمشو",15000,15000]
[20000,null,"2018-04-24","عبد الغني سمور",null,"نعم",67,"عناية مشددة",{"$f":"الجدول1581011[[#This Row],[المقبوض]]-الجدول1581011[[#This Row],[المدفوع]]","v":20000},null,null,null,34,"عدنان حصرية",null,"نها قباني ",25000,25000]
[25000,25000,"2018-04-24","ذكاء نقار",null,"نعم",56,15,{"$f":"الجدول1581011[[#This Row],[المقبوض]]-الجدول1581011[[#This Row],[المدفوع]]","v":0},null,null,null,35,"اسعاد دحروج",null,"عبد الرزاق البدوي",40000,40000]
[20000,null,"2018-04-25","عبد الغني سمور",null,"نعم",67,"عناية مشددة",{"$f":"الجدول1581011[[#This Row],[المقبوض]]-الجدول1581011[[#This Row],[المدفوع]]","v":20000},null,null,null,36,"براهيم بذارة",null,"عبد الحليم خير الله ",25000,25000]
[25000,25000,"2018-04-25"," ايه العمر",null,"نعم",72,17,{"$f":"الجدول1581011[[#This Row],[المقبوض]]-الجدول1581011[[#This Row],[المدفوع]]","v":0},null,null,null,37,"محمد علي رجب باشا",null,"محمد قبرصي",50000]
[15000,15000,"2018-04-25","مصطفى حمشو",null,"نعم",73,4,{"$f":"الجدول1581011[[#This Row],[المقبوض]]-الجدول1581011[[#This Row],[المدفوع]]","v":0},null,null,null,38,"لينا حجار",null,"كوثر الحسن",25000,25000]
[25000,25000,"2018-04-25","نها قباني ",null,"نعم",66,21,{"$f":"الجدول1581011[[#This Row],[المقبوض]]-الجدول1581011[[#This Row],[المدفوع]]","v":0},null,null,null,39,"فاطمة الملحم",null,"نبيهة الحسن",15000,15000]
[40000,40000,"2018-04-25","عبد الرزاق البدوي",null,"نعم",74,4,{"$f":"الجدول1581011[[#This Row],[المقبوض]]-الجدول1581011[[#This Row],[المدفوع]]","v":0},null,null,null,40,"محمد المحمد العلي",null,"محمد طبق",25000,25000]
[25000,25000,"2018-04-26","عبد الحليم خير الله ",null,"نعم",76,20,{"$f":"الجدول1581011[[#This Row],[المقبوض]]-الجدول1581011[[#This Row],[المدفوع]]","v":0},null,null,null,41,"محمد وليد الخليلي",null,"ضغينة العلي",20000]
[25000,null,"2018-04-26","محمد قبرصي",null,"نعم",68,"حواضن",{"$f":"الجدول1581011[[#This Row],[المقبوض]]-الجدول1581011[[#This Row],[المدفوع]]","v":25000},null,null,null,42,"حسين اليوسف",null,"فاطمة فرواتي",10000]
[50000,null,"2018-04-27","عبد الغني سمور",null,"نعم",67,"عناية مشددة",90000,null,null,null,43,"صابرين حمادة",null,"عبد الله شيخ البساتنة",10000]
[25000,25000,"2018-04-27","كوثر الحسن",null,"نعم",80,15,{"$f":"الجدول1581011[[#This Row],[المقبوض]]-الجدول1581011[[#This Row],[المدفوع]]","v":0},null,null,null,44,"امل حمادة",null,"عبد الرزاق درويش",25000]
[15000,15000,"2018-04-28","نبيهة الحسن",null,"نعم",83,14,{"$f":"الجدول1581011[[#This Row],[المقبوض]]-الجدول1581011[[#This Row],[المدفوع]]","v":0},null,null,null,45,"فاطمة الدلف",null,"محمد هيثم الصغير",16000,16000]
[25000,null,"2018-04-28","محمد قبرصي",null,"نعم",68,"حواضن",50000,null,null,null,46,"نورة العبد الله",null,"الإجمالي الكلي",1238000,1008000]
[25000,25000,"2018-04-28","محمد طبق",null,"نعم",43,19,{"$f":"الجدول1581011[[#This Row],[المقبوض]]-الجدول1581011[[#This Row],[المدفوع]]","v":0},null,null,null,47,"محمد صادق شيخ يوسف"]
[20000,null,"2018-04-29","ضغينة العلي",null,"نعم",85,20,{"$f":"الجدول1581011[[#This Row],[المقبوض]]-الجدول1581011[[#This Row],[المدفوع]]","v":20000}]
[10000,null,"2018-04-29","فاطمة فرواتي",null,"نعم",89,21,{"$f":"الجدول1581011[[#This Row],[المقبوض]]-الجدول1581011[[#This Row],[المدفوع]]","v":10000}]
[10000,null,"2018-04-29","عبد الله شيخ البساتنة",null,"نعم",87,"حواضن",{"$f":"الجدول1581011[[#This Row],[المقبوض]]-الجدول1581011[[#This Row],[المدفوع]]","v":10000}]
[25000,25000,"2018-04-29","عبد الرزاق درويش",null,"نعم",92,14,{"$f":"الجدول1581011[[#This Row],[المقبوض]]-الجدول1581011[[#This Row],[المدفوع]]","v":0}]
[16000,16000,"2018-04-29","محمد هيثم الصغير",null,"نعم",90,22,{"$f":"الجدول1581011[[#This Row],[المقبوض]]-الجدول1581011[[#This Row],[المدفوع]]","v":0}]
[25000,null,"2018-04-29","محمد قبرصي",null,"نعم",68,"حواضن",{"$f":"الجدول1581011[[#This Row],[المقبوض]]-الجدول1581011[[#This Row],[المدفوع]]","v":25000}]
[null,null,null,null,null,null,null,null,{"$f":"الجدول1581011[[#This Row],[المقبوض]]-الجدول1581011[[#This Row],[المدفوع]]","v":0},null,null,null,48,"سوريا قاسم"]
[null,null,null,null,null,null,null,null,{"$f":"الجدول1581011[[#This Row],[المقبوض]]-الجدول1581011[[#This Row],[المدفوع]]","v":0},null,null,null,49,"هلني قضيب البان"]
[{"$f":"SUBTOTAL(109,الجدول1581011[المقبوض])","v":1263000},{"$f":"SUBTOTAL(109,الجدول1581011[المدفوع])","v":1033000},"الرصيد اليومي",{"$f":"الجدول1581011[[#Totals],[المقبوض]]-الجدول1581011[[#Totals],[المدفوع]]","v":230000},null,null,null,null,{"$f":"SUBTOTAL(103,الجدول1581011[رقم الفاتورة])","v":53},null,null,null,50,"احمد "]
[null,null,null,null,null,null,null,null,null,null,null,null,51,"بشار سواس"]
[null,null,null,null,null,null,null,null,null,null,null,null,52,"انس لاذقاني"]
[null,null,null,null,null,null,null,null,null,null,null,null,53,"حازم الصالح"]
[null,null,null,null,null,null,null,null,null,null,null,null,54,"بدرعقاد"]
[]
[]
[]
[]
[]
[]
[]
[]
[]
[]
[null,null,null,null,null,null,null,null,null,null,null,null,null,null,null,null,null,null,{"$f":"GETPIVOTDATA(\"مجموع من المقبوض\",$P$4)-GETPIVOTDATA(\"مجموع من المدفوع\",$P$4)","v":230000}]